[Event "Delancey UK Schools 2019 U14"]
[Site "Daventry"]
[Date "2019.09.24"]
[Round "6.9"]
[White "Headlong, Georgia"]
[Black "Britnell, Jonathan"]
[Result "1/2-1/2"]
[ECO "C49"]
[WhiteElo "1464"]
[BlackElo "1650"]
[Annotator "NA"]
[PlyCount "114"]
[EventDate "2019.09.24"]
[EventCountry "GBR"]
[SourceTitle "playchess.com"]
[Source "ChessBase"]
[SourceQuality "1"]
[TimeControl "40/5400+30:1800+30"]

1. e4 {[%emt 1:10:11]} e5 {[%emt 1:10:11]} 2. Nf3 {[%emt 0:00:21]} Nc6 {[%emt 0:00:21]} 3. Nc3 {[%emt 0:00:21]} Nf6 {[%emt 0:00:22]} 4. Bb5 {[%emt 0:00:21]} Bb4 {[%emt 0:00:22]} 5. O-O {[%emt 0:00:27]} d6 {[%emt 0:01:00]} 6. Re1 {[%emt 0:01:33]} O-O {[%emt 0:00:30]} 7. d3 {[%emt 0:00:50]} Bg4 {[%emt 0:00:33]} 8. Bxc6 bxc6 {[%emt 0:00:24]} 9. Bg5 {[%emt 0:01:22]} Re8 {[%emt 0:01:01]} 10. a3 {[%emt 0:00:40]} Bc5 {[%emt 0:03:05]} 11. Na4 {[%emt 0:01:13]} Bb6 {[%emt 0:00:37]} 12. Nxb6 cxb6 {[%emt 0:00:44]} 13. c3 {[%emt 0:03:19]} Re6 {[%emt 0:02:41]} 14. Qe2 {[%emt 0:02:32]} Qd7 {[%emt 0:01:08]} 15. Rad1 {[%emt 0:01:15]} Rae8 {[%emt 0:02:15]} 16. Qe3 {[%emt 0:02:09]} Qc7 {[%emt 0:01:40]} 17. h3 {[%emt 0:01:38]} Bh5 {[%emt 0:00:25]} 18. Rd2 {[%emt 0:01:57]} Bg6 {[%emt 0:01:04]} 19. Nh4 {[%emt 0:01:34]} d5 {[%emt 0:02:55]} 20. Nxg6 {[%emt 0:00:51]} hxg6 {[%emt 0:00:29]} 21. Bxf6 {[%emt 0:02:01]} Rxf6 {[%emt 0:01:32]} 22. Qg3 {[%emt 0:00:57]} Rfe6 {[%emt 0:00:50]} 23. Rde2 {[%emt 0:00:43]} f5 {[%emt 0:00:27]} 24. exd5 {[%emt 0:02:07]} cxd5 {[%emt 0:00:27]} 25. d4 {[%emt 0:01:24]} f4 {[%emt 0:00:27]} 26. Qg5 {[%emt 0:00:33]} Qf7 {[%emt 0:02:40]} 27. Rxe5 {[%emt 0:01:04]} Rxe5 {[%emt 0:00:23]} 28. Rxe5 {[%emt 0:00:24]} Rxe5 {[%emt 0:00:23]} 29. dxe5 {[%emt 0:00:45]} f3 {[%emt 0:01:17]} 30. Qg4 {[%emt 0:00:39]} fxg2 {[%emt 0:00:34]} 31. Kxg2 {[%emt 0:00:38]} Qe7 {[%emt 0:01:12]} 32. Qc8+ {[%emt 0:00:31]} Kh7 {[%emt 0:00:45]} 33. f4 {[%emt 0:01:07]} g5 {[%emt 0:01:11]} 34. Qf5+ {[%emt 0:00:36]} Kg8 {[%emt 0:00:45]} 35. Qxg5 {[%emt 0:00:30]} Qb7 {[%emt 0:00:25]} 36. Kg3 {[%emt 0:00:28]} Qa6 {[%emt 0:00:56]} 37. Qd8+ {[%emt 0:00:51]} Kh7 {[%emt 0:00:35]} 38. Qh4+ {[%emt 0:00:39]} Kg8 {[%emt 0:00:23]} 39. Kg4 {[%emt 0:00:26]} Qe2+ {[%emt 0:01:17]} 40. Kg5 {[%emt 0:00:24]} Qxb2 {[%emt 0:01:00]} 41. e6 {[%emt 0:30:32]} Qxc3 {[%emt 0:30:25]} 42. f5 {[%emt 0:00:43]} Qf6+ {[%emt 0:00:52]} 43. Kg4 {[%emt 0:00:24]} Qd4+ {[%emt 0:00:28]} 44. Kh5 {[%emt 0:00:23]} Qxh4+ {[%emt 0:00:24]} 45. Kxh4 {[%emt 0:00:22]} b5 {[%emt 0:00:36]} 46. Kg4 {[%emt 0:00:26]} Kf8 {[%emt 0:00:23]} 47. Kf4 {[%emt 0:00:21]} a5 {[%emt 0:00:24]} 48. Ke3 {[%emt 0:01:13]} Ke7 {[%emt 0:00:25]} 49. h4 {[%emt 0:00:23]} Kd6 {[%emt 0:00:51]} 50. Kd4 {[%emt 0:00:23]} b4 {[%emt 0:00:29]} 51. axb4 {[%emt 0:00:28]} axb4 {[%emt 0:00:33]} 52. Kd3 {[%emt 0:00:29]} Ke7 {[%emt 0:00:39]} 53. h5 {[%emt 0:00:36]} Kd6 {[%emt 0:00:21]} 54. f6 {[%emt 0:00:30]} Kxe6 {[%emt 0:00:35]} 55. fxg7 {[%emt 0:00:22]} Kf7 {[%emt 0:00:23]} 56. h6 {[%emt 0:00:22]} Kg8 {[%emt 0:00:26]} 57. Kc2 {[%emt 0:00:32]} d4 {[%emt 0:00:24]} 1/2-1/2

[Event "Delancey UK Schools 2019 U14"]
[Site "Daventry"]
[Date "2019.09.24"]
[Round "6.11"]
[White "Dicen, Imogen"]
[Black "Saidmurodov, Shahjahon"]
[Result "1-0"]
[ECO "A50"]
[WhiteElo "1509"]
[BlackElo "1782"]
[Annotator "NA"]
[PlyCount "91"]
[EventDate "2019.09.24"]
[EventCountry "GBR"]
[SourceTitle "playchess.com"]
[Source "ChessBase"]
[SourceQuality "1"]
[TimeControl "40/5400+30:1800+30"]

1. d4 {[%emt 1:10:12]} b6 {[%emt 1:10:12]} 2. c4 {[%emt 0:00:22]} Bb7 {[%emt 0:00:02]} 3. Nc3 {[%emt 0:00:23]} Nf6 {[%emt 0:00:41]} 4. Qc2 {[%emt 0:00:21]} e6 {[%emt 0:00:23]} 5. Bg5 {[%emt 0:00:22]} d5 {[%emt 0:00:22]} 6. e3 {[%emt 0:00:22]} Bb4 {[%emt 0:00:28]} 7. Nf3 {[%emt 0:00:24]} Nbd7 {[%emt 0:00:21]} 8. Be2 {[%emt 0:00:22]} h6 {[%emt 0:00:29]} 9. Bxf6 Nxf6 {[%emt 0:00:22]} 10. Qa4+ {[%emt 0:00:54]} Qd7 {[%emt 0:00:40]} 11. Qxb4 {[%emt 0:00:22]} Ne4 {[%emt 0:00:42]} 12. Nxe4 {[%emt 0:00:25]} dxe4 {[%emt 0:00:21]} 13. Ne5 {[%emt 0:00:38]} Qd6 {[%emt 0:00:43]} 14. c5 {[%emt 0:00:46]} Qe7 {[%emt 0:01:22]} 15. Bb5+ {[%emt 0:00:43]} Kf8 {[%emt 0:00:30]} 16. O-O {[%emt 0:01:13]} g5 {[%emt 0:00:30]} 17. Nd7+ {[%emt 0:00:52]} Kg7 {[%emt 0:00:27]} 18. Ne5 {[%emt 0:00:43]} a6 {[%emt 0:01:30]} 19. Be2 {[%emt 0:00:40]} b5 {[%emt 0:00:32]} 20. f4 {[%emt 0:01:15]} f6 {[%emt 0:00:38]} 21. Ng4 {[%emt 0:00:27]} h5 {[%emt 0:00:41]} 22. Nf2 {[%emt 0:00:22]} gxf4 {[%emt 0:00:26]} 23. exf4 {[%emt 0:00:28]} Kh7 {[%emt 0:00:43]} 24. Qc3 {[%emt 0:00:31]} f5 {[%emt 0:02:14]} 25. c6 {[%emt 0:01:42]} Bc8 {[%emt 0:01:05]} 26. Nh3 {[%emt 0:00:34]} h4 {[%emt 0:02:52]} 27. Ng5+ {[%emt 0:00:53]} Kg8 {[%emt 0:00:38]} 28. b4 {[%emt 0:00:41]} a5 {[%emt 0:04:25]} 29. a3 {[%emt 0:00:26]} Rh6 {[%emt 0:01:49]} 30. Bxb5 {[%emt 0:00:31]} Rg6 {[%emt 0:00:24]} 31. Qd2 {[%emt 0:01:39]} Ba6 {[%emt 0:03:21]} 32. Bxa6 {[%emt 0:00:42]} Rxa6 {[%emt 0:00:21]} 33. b5 {[%emt 0:00:44]} Ra8 {[%emt 0:00:23]} 34. a4 {[%emt 0:01:17]} Rd8 {[%emt 0:00:40]} 35. Rfd1 {[%emt 0:00:54]} Qg7 {[%emt 0:01:32]} 36. Qe3 {[%emt 0:00:48]} Rd5 {[%emt 0:02:53]} 37. Rab1 {[%emt 0:00:38]} Qe7 {[%emt 0:00:48]} 38. b6 {[%emt 0:01:12]} cxb6 {[%emt 0:02:15]} 39. Rxb6 {[%emt 0:00:22]} Qd8 {[%emt 0:00:28]} 40. Rdb1 {[%emt 0:01:31]} Rxd4 {[%emt 0:00:32]} 41. Rb8 {[%emt 0:30:23]} Rd1+ {[%emt 0:30:28]} 42. Kf2 {[%emt 0:00:21]} Kg7 {[%emt 0:00:36]} 43. R1b7+ {[%emt 0:00:32]} Kh8 {[%emt 0:00:30]} 44. Qc3+ {[%emt 0:00:33]} Rd4 {[%emt 0:00:28]} 45. Qxd4+ {[%emt 0:00:23]} Rg7 {[%emt 0:00:32]} 46. Qxg7# {[%emt 0:00:25]} 1-0

[Event "Delancey UK Schools 2019 U14"]
[Site "Daventry"]
[Date "2019.09.24"]
[Round "6.13"]
[White "Korsinskij, Nikolas"]
[Black "Jayanthi, Harshita"]
[Result "1-0"]
[ECO "B01"]
[WhiteElo "1502"]
[BlackElo "1217"]
[Annotator "NA"]
[PlyCount "79"]
[EventDate "2019.09.24"]
[EventCountry "GBR"]
[SourceTitle "playchess.com"]
[Source "ChessBase"]
[SourceQuality "1"]
[TimeControl "40/5400+30:1800+30"]

1. e4 {[%emt 1:10:12]} d5 {[%emt 1:10:12]} 2. exd5 {[%emt 0:00:21]} Qxd5 {[%emt 0:00:21]} 3. Nc3 {[%emt 0:00:22]} Qa5 {[%emt 0:00:21]} 4. d4 {[%emt 0:00:22]} Nf6 {[%emt 0:00:31]} 5. Nf3 {[%emt 0:00:26]} Bg4 {[%emt 0:00:22]} 6. Bd2 {[%emt 0:00:36]} Qb6 {[%emt 0:00:43]} 7. Qe2 {[%emt 0:01:28]} Nc6 {[%emt 0:01:19]} 8. Na4 {[%emt 0:02:00]} Qa6 {[%emt 0:00:51]} 9. Qxa6 {[%emt 0:00:50]} bxa6 {[%emt 0:00:21]} 10. Bxa6 {[%emt 0:00:22]} Bxf3 {[%emt 0:00:25]} 11. gxf3 {[%emt 0:00:23]} Nxd4 {[%emt 0:00:26]} 12. O-O-O {[%emt 0:00:32]} Nxf3 {[%emt 0:00:36]} 13. Bb5+ {[%emt 0:02:16]} Nd7 {[%emt 0:00:45]} 14. Ba5 {[%emt 0:02:35]} Nfe5 {[%emt 0:01:26]} 15. Bxc7 {[%emt 0:00:27]} a6 {[%emt 0:01:15]} 16. Nb6 {[%emt 0:00:55]} Ra7 {[%emt 0:01:50]} 17. Rxd7 {[%emt 0:01:20]} f6 {[%emt 0:03:07]} 18. Bxe5 {[%emt 0:01:44]} Rxd7 {[%emt 0:01:33]} 19. Bxd7+ {[%emt 0:00:25]} Kf7 {[%emt 0:00:21]} 20. Bc7 {[%emt 0:00:53]} e5 {[%emt 0:00:49]} 21. Rd1 {[%emt 0:00:51]} Bc5 {[%emt 0:01:17]} 22. f3 {[%emt 0:00:28]} Be3+ {[%emt 0:00:40]} 23. Kb1 {[%emt 0:00:25]} Kg6 {[%emt 0:00:53]} 24. Bc8 {[%emt 0:00:43]} Re8 {[%emt 0:00:55]} 25. Rd8 {[%emt 0:00:50]} Re7 {[%emt 0:00:32]} 26. Nd5 {[%emt 0:00:23]} Rf7 {[%emt 0:01:02]} 27. Be6 {[%emt 0:00:24]} Rxc7 {[%emt 0:00:33]} 28. Nxc7 {[%emt 0:00:24]} Bb6 {[%emt 0:00:23]} 29. Rd7 {[%emt 0:00:27]} f5 {[%emt 0:00:29]} 30. Nd5 {[%emt 0:00:27]} Bf2 {[%emt 0:00:28]} 31. Kc1 {[%emt 0:01:01]} e4 {[%emt 0:00:37]} 32. fxe4 {[%emt 0:00:45]} fxe4 {[%emt 0:00:21]} 33. Kd1 {[%emt 0:00:22]} Kg5 {[%emt 0:00:44]} 34. Ke2 {[%emt 0:00:23]} Bg1 {[%emt 0:00:33]} 35. Rxg7+ {[%emt 0:00:23]} Kh4 {[%emt 0:00:22]} 36. Rxg1 {[%emt 0:00:23]} a5 {[%emt 0:00:28]} 37. Ke3 {[%emt 0:00:22]} a4 {[%emt 0:00:37]} 38. Kxe4 {[%emt 0:00:44]} h5 {[%emt 0:00:42]} 39. Nf4 {[%emt 0:01:11]} a3 {[%emt 0:00:42]} 40. Ng6# {[%emt 0:00:23]} 1-0